bitfinex-derivatives/quotes_BTCF0:USTF0_20250218
["timestamp","ask_amount","ask_price","bid_price","bid_amount"]
[1739858681848,0.3608,95537.0,95536.0,0.2093367]
[1739858682037,0.3638,95537.0,95536.0,0.2093367]
[1739858682655,0.3648,95537.0,95536.0,0.2093367]
[1739858683152,0.36992871,95537.0,95536.0,0.2093367]
[1739858684243,0.36892871,95537.0,95536.0,0.2093367]
[1739858684444,0.36992871,95537.0,95536.0,0.2093367]
[1739858685341,0.36988098,95537.0,95536.0,0.2093367]
[1739858687654,0.36988098,95537.0,95533.0,0.0332]
[1739858688647,0.36888098,95537.0,95536.0,0.2093367]
[1739858689149,0.36788098,95537.0,95536.0,0.2093367]
[1739858689847,0.36888098,95537.0,95536.0,0.2093367]
[1739858690447,0.36988098,95537.0,95536.0,0.2093367]
[1739858692458,0.36148098,95537.0,95536.0,0.2093367]
[1739858693455,0.36148098,95537.0,95533.0,0.0332]
[1739858694360,0.36148098,95537.0,95535.0,0.2093377]
[1739858694547,0.36048098,95537.0,95535.0,0.2093377]
[1739858694955,0.35748098,95537.0,95535.0,0.2093377]
[1739858695162,0.35948098,95537.0,95535.0,0.2093377]
[1739858695658,0.36048098,95537.0,95535.0,0.2093377]
[1739858696563,0.36048098,95537.0,95521.0,0.0315]
[1739858696752,0.36148098,95537.0,95521.0,0.0315]
[1739858697061,0.3608,95527.0,95521.0,0.0315]
[1739858697655,0.3608,95527.0,95526.0,0.2093587]
[1739858699161,0.3628,95527.0,95526.0,0.2093587]
[1739858700456,0.3628,95527.0,95519.0,0.91304]
[1739858700654,0.3628,95527.0,95520.0,0.12776]
[1739858700858,0.0303,95526.0,95520.0,0.12776]
[1739858701062,0.0303,95526.0,95519.0,0.00056]
[1739858701258,0.0303,95526.0,95515.0,0.20953846]
[1739858701460,0.0303,95526.0,95515.0,0.00015706]
[1739858702682,0.0303,95526.0,95518.0,0.209376]
[1739858703473,0.36144,95527.0,95515.0,0.00015706]
[1739858703673,0.3608,95527.0,95526.0,0.2093587]
[1739858703876,0.00015706,95533.0,95526.0,0.2093587]
[1739858704178,0.00015706,95533.0,95529.0,0.2093513]
[1739858704375,0.34331799,95535.0,95529.0,0.2093513]
[1739858704978,0.34267799,95535.0,95529.0,0.2093513]
[1739858705286,0.3608,95533.0,95515.0,0.00015706]
[1739858705583,0.3608,95518.0,95515.0,0.20953836]
[1739858705779,0.3608,95518.0,95515.0,0.00015706]
[1739858706886,0.3742907,95518.0,95515.0,0.00015706]
[1739858707983,0.3752907,95518.0,95515.0,0.00015706]
[1739858708190,0.05092135,95517.0,95515.0,0.00015706]
[1739858708373,0.11662135,95517.0,95515.0,0.00015706]
[1739858709082,0.47742135,95517.0,95515.0,0.00015706]
[1739858709283,0.2093805,95516.0,95515.0,0.00015706]
[1739858711091,0.2133805,95516.0,95515.0,0.00015706]
[1739858711784,0.2183805,95516.0,95515.0,0.00015706]
[1739858713280,0.35822641,95516.0,95515.0,0.00015706]
[1739858713884,0.2094054,95505.0,95500.0,2.1]
[1739858714085,0.7216,95501.0,95500.0,2.1]
[1739858715186,0.3936,95503.0,95500.0,2.1]
[1739858716091,0.002,95501.0,95500.0,2.1]
[1739858716477,0.39624,95503.0,95500.0,2.1]
[1739858716681,0.3956,95503.0,95500.0,2.1]
[1739858717091,0.002,95503.0,95502.0,0.2094107]
[1739858717293,0.00720571,95503.0,95502.0,0.2094107]
[1739858717484,0.08487843,95505.0,95501.0,0.0659]
[1739858717683,0.08487843,95505.0,95504.0,0.2094063]
[1739858717888,0.00015706,95510.0,95509.0,0.2093953]
[1739858718196,0.00541306,95510.0,95509.0,0.5701953]
[1739858718587,0.00015706,95510.0,95509.0,0.5701953]
[1739858719997,0.00515706,95510.0,95509.0,0.5701953]
[1739858720295,0.00815706,95510.0,95509.0,0.5701953]
[1739858721298,0.00815706,95510.0,95509.0,0.2093953]
[1739858723004,0.00815706,95510.0,95500.0,2.10056]
[1739858723198,0.3608,95501.0,95500.0,2.07988418]
[1739858724486,0.3922,95504.0,95500.0,2.07988418]
[1739858725594,0.001,95501.0,95500.0,2.07988418]
[1739858725801,0.05193112,95501.0,95500.0,2.07988418]
[1739858726096,0.05093112,95501.0,95500.0,2.07988418]
[1739858727794,0.05193112,95501.0,95500.0,2.07988418]
[1739858729697,0.0939723,95501.0,95500.0,2.07988418]
[1739858730895,0.3033852,95501.0,95500.0,2.07988418]
[1739858731600,0.0939723,95501.0,95500.0,2.07988418]
[1739858733808,0.14490342,95501.0,95500.0,2.07988418]
[1739858734505,0.14390342,95501.0,95500.0,2.07988418]
[1739858734690,0.14590342,95501.0,95500.0,2.07988418]
[1739858737304,0.14590342,95501.0,95491.0,0.00015706]
[1739858737503,0.5702326,95492.0,95491.0,0.00015706]
[1739858738003,0.5702326,95492.0,95491.0,1e-08]
[1739858740407,0.71413602,95492.0,95491.0,1e-08]
[1739858744202,0.70573602,95492.0,95491.0,1e-08]
[1739858747312,0.50470342,95492.0,95491.0,1e-08]
[1739858747509,0.14390342,95492.0,95491.0,1e-08]
[1739858747911,0.21701719,95496.0,95495.0,0.2094257]
[1739858748106,0.2483239,95503.0,95502.0,0.2094104]
[1739858748917,0.2483239,95503.0,95501.0,0.3608]
[1739858749414,0.2503239,95503.0,95501.0,0.3608]
[1739858751317,0.002,95503.0,95501.0,0.3608]
[1739858751520,0.0699,95502.0,95501.0,0.3608]
[1739858752516,0.0719,95502.0,95501.0,0.3608]
[1739858753206,0.002,95502.0,95501.0,0.3608]
[1739858753406,0.002,95502.0,95501.0,0.49532]
[1739858756813,0.002,95502.0,95501.0,0.50780933]
[1739858757118,0.002,95502.0,95501.0,0.3608]
[1739858757319,0.002,95502.0,95501.0,0.49456]
[1739858759116,0.002,95502.0,95500.0,0.91332]
[1739858759309,0.0676,95501.0,95491.0,1e-08]
[1739858759508,0.1014,95501.0,95491.0,1e-08]
[1739858759708,0.4622,95501.0,95491.0,1e-08]
[1739858760819,0.3608,95492.0,95491.0,1e-08]
[1739858761021,0.5702324,95492.0,95491.0,1e-08]
[1739858764223,0.5618324,95492.0,95491.0,1e-08]
[1739858766911,0.18666479,95494.0,95491.0,0.36080001]
[1739858767512,0.21725412,95493.0,95492.0,0.2094324]
[1739858767715,0.21725412,95493.0,95491.0,0.36080001]
[1739858767921,0.21725412,95493.0,95491.0,0.36076001]
[1739858768324,0.21725412,95493.0,95484.0,1.50146]
[1739858768520,0.21725412,95493.0,95484.0,0.0009]
[1739858768721,0.21725412,95493.0,95491.0,0.3608]
[1739858769227,0.0344,95501.0,95495.0,0.2094247]
[1739858769427,0.0344,95501.0,95500.0,0.3608]
[1739858769725,0.0344,95501.0,95500.0,0.50544]
[1739858770422,0.15514825,95508.0,95501.0,0.2094125]
[1739858770625,0.15514825,95508.0,95503.0,0.3608]
[1739858771127,0.15514825,95508.0,95507.0,0.2093994]
[1739858772121,0.15614825,95508.0,95507.0,0.2093994]
[1739858772515,0.001,95508.0,95507.0,0.2093994]
[1739858772718,0.15530531,95510.0,95507.0,0.2093994]
[1739858773021,0.002,95508.0,95507.0,0.2093994]
[1739858773245,0.005,95508.0,95507.0,0.2093994]
[1739858773831,0.002,95508.0,95507.0,0.2093994]
[1739858774529,0.15530531,95510.0,95507.0,0.2093994]
[1739858775226,0.001,95508.0,95507.0,0.2093994]
[1739858776018,0.15630531,95510.0,95507.0,0.2093994]
[1739858776730,0.00115706,95510.0,95507.0,0.2093994]
[1739858776931,0.0327,95509.0,95507.0,0.2093994]
[1739858778231,0.0327,95509.0,95507.0,0.2143994]
[1739858778824,0.0327,95509.0,95507.0,0.2093994]
[1739858779021,0.0327,95509.0,95507.0,0.2133994]
[1739858780531,0.0327,95509.0,95507.0,0.2093994]
[1739858780739,0.0327,95509.0,95507.0,0.2113994]
[1739858782133,0.0327,95509.0,95507.0,0.2093994]
[1739858782318,0.0655,95509.0,95507.0,0.2113994]
[1739858801037,0.23709337,95508.0,95507.0,0.2113994]
[1739858803444,0.25943914,95545.0,95507.0,0.302]
[1739858803639,0.0688,95524.0,95517.0,0.3608]
[1739858803849,0.1041,95524.0,95523.0,0.2093643]
[1739858805440,0.1061,95524.0,95523.0,0.2093643]
[1739858806139,0.1091,95524.0,95523.0,0.2093643]
[1739858807651,0.09981951,95529.0,95528.0,0.2093534]
[1739858807943,0.09981951,95529.0,95522.0,0.9132]
[1739858807944,0.46061951,95529.0,95522.0,0.9132]
[1739858808145,0.46061951,95529.0,95522.0,0.91264]
[1739858808544,0.66997181,95529.0,95522.0,0.91264]
[1739858808946,0.67497181,95529.0,95522.0,0.91264]
[1739858809639,0.67297181,95529.0,95522.0,0.91264]
[1739858809838,0.66457181,95529.0,95522.0,0.91264]
[1739858810049,0.66857181,95529.0,95522.0,0.91264]
[1739858810351,0.67157181,95529.0,95522.0,0.91264]
[1739858810544,0.2093595,95526.0,95522.0,0.91264]
[1739858810848,0.2093595,95526.0,95519.0,0.14224]
[1739858811055,0.2093595,95526.0,95514.0,0.00015706]
[1739858811642,0.2133595,95526.0,95514.0,0.00015706]
[1739858812543,0.2153595,95526.0,95514.0,0.00015706]
[1739858813147,0.10344764,95524.0,95514.0,0.00015706]
[1739858813344,0.2123595,95526.0,95514.0,0.00015706]
[1739858813546,0.10344764,95524.0,95514.0,0.00015706]
[1739858814548,0.2093726,95520.0,95514.0,0.00015706]
[1739858815953,0.2113726,95520.0,95514.0,0.00015706]
[1739858816557,0.2093817,95516.0,95514.0,0.00015706]
[1739858816851,0.3608,95516.0,95497.0,0.21099074]
[1739858817053,0.3608,95503.0,95497.0,0.21099074]
[1739858817247,0.3608,95503.0,95495.0,0.858]
[1739858817248,0.2094208,95498.0,95495.0,0.858]
[1739858817553,0.2094208,95498.0,95494.0,0.3608]
[1739858817755,0.3608,95495.0,95484.0,0.2094484]
[1739858817954,0.10344764,95494.0,95484.0,0.2094484]
[1739858818151,0.10344764,95494.0,95485.0,0.2094457]
[1739858818451,0.11581757,95494.0,95485.0,0.2094457]
[1739858818953,0.11581757,95494.0,95479.0,0.18768105]
[1739858819155,0.2094456,95486.0,95479.0,0.18768105]
[1739858819454,0.2034456,95486.0,95479.0,0.18768105]
[1739858820456,0.2044456,95486.0,95479.0,0.19468105]
[1739858820752,0.0348,95485.0,95479.0,0.19468105]
[1739858820957,0.1046,95485.0,95479.0,0.19468105]
[1739858821755,0.15553867,95485.0,95479.0,0.19468105]
[1739858822058,0.15553867,95485.0,95483.0,0.2094518]
[1739858822459,0.05093867,95485.0,95483.0,0.5702518]
[1739858822650,0.05193867,95485.0,95483.0,0.5702518]
[1739858822844,0.021434,95485.0,95484.0,1.6072]
[1739858823050,0.021434,95485.0,95484.0,0.1072]
[1739858823850,0.021434,95485.0,95483.0,0.3658]
[1739858824258,0.020434,95485.0,95484.0,0.005]
[1739858825453,0.01216298,95494.0,95484.0,0.005]
[1739858825656,0.3608,95495.0,95484.0,0.005]
[1739858825956,0.3608,95495.0,95485.0,0.14384]
[1739858826851,0.01214494,95495.0,95485.0,0.14384]
[1739858827049,0.01214494,95495.0,95483.0,0.3608]
[1739858827050,0.3608,95496.0,95484.0,0.005]
[1739858827253,0.1086,95504.0,95485.0,0.14332]
[1739858827460,0.3608,95495.0,95484.0,0.005]
[1739858827762,0.3608,95495.0,95485.0,0.14832]
[1739858828353,0.37331274,95495.0,95485.0,0.14832]
[1739858828664,0.37331274,95495.0,95485.0,0.005]
[1739858828864,0.01251274,95495.0,95485.0,0.005]
[1739858829056,0.10344764,95500.0,95485.0,0.005]
[1739858829256,0.10344764,95500.0,95484.0,0.2094497]
[1739858829455,0.3608,95499.0,95484.0,0.2144497]
[1739858830155,0.3608,95499.0,95485.0,0.005]
[1739858830354,0.01230786,95500.0,95485.0,0.005]
[1739858830556,0.18587257,95514.0,95497.0,0.2094213]
[1739858830866,0.012223,95506.0,95497.0,0.2094213]
[1739858831354,0.00015706,95506.0,95497.0,0.2094213]
[1739858831767,0.00623572,95498.0,95497.0,0.2094213]
[1739858832964,0.00623572,95498.0,95494.0,0.1049]
[1739858833158,0.3608,95497.0,95479.0,0.2094596]
[1739858833361,0.034,95496.0,95481.0,0.2094559]
[1739858833667,0.034,95496.0,95483.0,0.209452]
[1739858834062,0.034,95496.0,95494.0,0.001]
[1739858834260,0.034,95496.0,95495.0,0.1416]
[1739858835163,0.034,95496.0,95495.0,0.14128]
[1739858835758,0.035,95496.0,95495.0,0.14128]
[1739858836359,0.0256,95496.0,95495.0,0.14088]
[1739858836567,0.0256,95496.0,95495.0,0.14188]
[1739858838666,0.0256,95496.0,95495.0,0.001]
[1739858838870,0.0256,95496.0,95495.0,0.1412]
[1739858839473,0.0256,95496.0,95495.0,0.001]
[1739858839660,0.0256,95496.0,95492.0,0.14004]
[1739858839966,0.3608,95493.0,95492.0,0.14004]
[1739858841468,0.5702302,95493.0,95481.0,0.13976]
[1739858841660,0.5702302,95493.0,95475.0,0.001571]
[1739858841661,0.16352989,95482.0,95475.0,0.001571]
[1739858841971,0.1058,95481.0,95475.0,0.001571]
[1739858842265,0.1038,95481.0,95475.0,0.001571]
[1739858843172,0.1169043,95481.0,95475.0,0.005571]
[1739858844164,0.1179043,95481.0,95475.0,0.005571]
[1739858844876,0.0847043,95481.0,95475.0,0.005571]
[1739858845372,0.15508451,95478.0,95475.0,0.005571]
[1739858846673,0.15608451,95478.0,95475.0,0.005571]
[1739858846860,0.15708451,95478.0,95475.0,0.003571]
[1739858847871,0.36654781,95478.0,95475.0,0.002]
[1739858848077,0.2094681,95476.0,95461.0,0.01228947]
[1739858848292,0.15708451,95478.0,95466.0,0.2094881]
[1739858848576,0.15708451,95478.0,95466.0,0.3608]
[1739858848782,0.15708451,95478.0,95474.0,0.2094713]
[1739858848967,0.15708451,95478.0,95467.0,0.0675]
[1739858849276,0.001,95476.0,95467.0,0.0675]
[1739858849866,0.002,95476.0,95467.0,0.0675]
[1739858850172,0.05093411,95477.0,95469.0,0.2094826]
[1739858850368,0.001,95476.0,95469.0,0.2094826]
[1739858850772,0.001,95476.0,95467.0,0.0705]
[1739858851271,0.05093411,95477.0,95467.0,0.0705]
[1739858851469,0.05193411,95477.0,95467.0,0.0705]
[1739858851887,0.05193411,95477.0,95467.0,0.0675]
[1739858852176,0.001,95476.0,95468.0,0.209485]
[1739858852380,0.15505695,95470.0,95468.0,0.209485]
[1739858853476,0.15605695,95470.0,95468.0,0.209485]
[1739858853679,0.15705695,95470.0,95468.0,0.209485]
[1739858853982,0.16220718,95470.0,95468.0,0.209485]
[1739858855571,0.16220718,95470.0,95467.0,0.0675]
[1739858855972,0.16220718,95470.0,95467.0,0.034]
[1739858856177,0.00715023,95470.0,95466.0,0.3608]
[1739858856579,0.00715023,95470.0,95461.0,0.0345]
[1739858856876,0.00715023,95470.0,95467.0,0.002]
[1739858857477,0.00615023,95470.0,95467.0,0.002]
[1739858857683,0.00715023,95470.0,95467.0,0.002]
[1739858858379,0.15505695,95475.0,95469.0,0.3608]
[1739858858577,0.3608,95501.0,95469.0,0.3608]
[1739858858578,0.01182053,95488.0,95474.0,0.3608]
[1739858858774,0.10344764,95484.0,95474.0,0.3608]
[1739858858979,0.0702,95482.0,95472.0,0.2094761]
[1739858859284,0.17364764,95482.0,95472.0,0.2094761]
[1739858859876,0.18606834,95475.0,95472.0,0.2094761]
[1739858860182,0.54686834,95475.0,95474.0,0.002]
[1739858860382,0.18606834,95475.0,95474.0,0.002]
[1739858860983,0.54686834,95475.0,95474.0,0.002]
[1739858861583,0.53846834,95475.0,95474.0,0.002]
[1739858861777,0.2094718,95474.0,95472.0,0.004]
[1739858862085,0.2094801,95471.0,95460.0,0.37254393]
[1739858862276,0.3608,95467.0,95460.0,0.37254393]
[1739858862479,0.0372,95466.0,95460.0,0.37254393]
[1739858862787,0.0332,95466.0,95460.0,0.01174393]
[1739858862971,0.0332,95466.0,95452.0,0.3608]
[1739858863178,0.10344764,95462.0,95452.0,0.3608]
[1739858863376,0.3608,95453.0,95449.0,0.0006]
[1739858863592,0.3608,95453.0,95445.0,0.2095355]
[1739858863777,0.0348,95452.0,95445.0,0.2095355]
[1739858864291,0.0348,95452.0,95434.0,0.2095592]
[1739858864491,0.3608,95447.0,95434.0,0.2095592]
[1739858864783,0.3608,95447.0,95436.0,0.2095546]
[1739858864986,0.0375,95451.0,95443.0,0.2095391]
[1739858865292,0.0375,95451.0,95434.0,0.2095578]
[1739858865789,0.0375,95451.0,95436.0,0.2095547]
[1739858866089,0.0375,95451.0,95429.0,0.5703703]
[1739858866090,0.0353,95450.0,95429.0,0.5703703]
[1739858866686,0.0353,95450.0,95439.0,0.2095468]
[1739858867291,0.0353,95450.0,95442.0,0.3608]
[1739858867784,0.0363,95450.0,95442.0,0.3608]
[1739858868087,0.0363,95450.0,95439.0,0.2095468]
[1739858868988,0.0363,95450.0,95430.0,0.10344764]
[1739858869191,0.0363,95450.0,95447.0,0.2095311]
[1739858869390,0.0385,95451.0,95439.0,0.3608]
[1739858869391,0.001,95451.0,95449.0,0.2095267]
[1739858869579,0.001,95450.0,95449.0,0.2095267]
[1739858869776,0.002,95450.0,95449.0,0.2095267]
[1739858870478,0.001,95450.0,95449.0,0.2095267]
[1739858870679,0.002,95451.0,95449.0,0.2095267]
[1739858871292,0.001,95450.0,95449.0,0.2095267]
[1739858871994,0.05195326,95450.0,95449.0,0.2095267]
[1739858872395,0.05295326,95450.0,95447.0,0.0352]
[1739858872597,0.05295326,95450.0,95449.0,0.2095267]
[1739858872890,0.05195326,95450.0,95449.0,0.2095267]
[1739858873793,0.05295326,95450.0,95449.0,0.2095267]
[1739858874484,0.05395326,95450.0,95449.0,0.2095267]
[1739858879695,0.05915923,95450.0,95449.0,0.2095267]
[1739858881488,0.01201852,95466.0,95460.0,0.2095024]
[1739858881693,5e-08,95461.0,95460.0,0.5703024]
[1739858881893,0.0839,95484.0,95470.0,0.2094804]
[1739858882098,0.31126064,95485.0,95483.0,0.2094519]
[1739858882294,0.0052479,95508.0,95497.0,0.2094207]
[1739858882499,0.0052479,95508.0,95499.0,0.3608]
[1739858883291,0.0052479,95508.0,95498.0,0.3608]
[1739858883496,0.0072479,95508.0,95498.0,0.3608]
[1739858883689,0.0072479,95508.0,95506.0,0.3608]
[1739858883895,0.00015706,95513.0,95507.0,0.91332]
[1739858884095,0.00015706,95513.0,95509.0,0.3608]
[1739858884303,0.00015706,95513.0,95512.0,0.2093883]
[1739858884597,0.0536226,95538.0,95529.0,0.2093493]
[1739858884804,0.00522274,95540.0,95529.0,0.2093493]
[1739858885003,0.3608,95556.0,95536.0,0.3608]
[1739858885189,0.37305506,95556.0,95540.0,0.10344764]
[1739858886090,0.01225506,95556.0,95552.0,0.3608]
[1739858886296,0.00015706,95558.0,95552.0,0.3608]
[1739858886497,0.00015706,95558.0,95553.0,0.9132]
[1739858886498,0.007,95556.0,95553.0,0.9132]
[1739858886702,0.007,95556.0,95554.0,0.1444]
[1739858887302,0.014,95556.0,95554.0,0.1444]
[1739858887901,0.014,95556.0,95554.0,0.1454]
[1739858888299,0.009,95556.0,95554.0,0.1454]
[1739858888804,0.009,95556.0,95554.0,0.001]
[1739858888994,0.009,95556.0,95555.0,0.14584]
[1739858888995,0.007,95556.0,95555.0,0.14584]
[1739858889203,0.009,95556.0,95555.0,0.14584]
[1739858890098,0.007,95556.0,95555.0,0.14604]
[1739858890298,0.007,95556.0,95555.0,0.14704]
[1739858890299,0.002,95556.0,95555.0,0.14704]
[1739858890504,0.009,95556.0,95555.0,0.14804]
[1739858891007,0.00517491,95570.0,95555.0,0.50884]
[1739858891205,0.3608,95594.0,95570.0,0.2092599]
[1739858891507,0.3608,95594.0,95584.0,0.3608]
[1739858891508,0.19764428,95585.0,95584.0,0.3608]
[1739858891904,0.01219021,95585.0,95584.0,0.3608]
[1739858892208,0.3608,95594.0,95584.0,0.3608]
[1739858892394,0.36095698,95594.0,95585.0,0.14668]
[1739858892597,0.36095698,95594.0,95584.0,0.3608]
[1739858892797,0.00015698,95594.0,95584.0,0.3608]
[1739858893109,0.007,95585.0,95584.0,0.46524764]
[1739858893313,0.01866893,95585.0,95584.0,0.3618]
[1739858893504,0.007,95585.0,95584.0,0.3618]
[1739858893805,0.007,95585.0,95584.0,0.50896]
[1739858894007,0.005,95585.0,95584.0,0.50896]
[1739858894212,0.005,95585.0,95584.0,0.14816]
[1739858894807,0.01180882,95593.0,95584.0,0.14816]
[1739858895007,0.00715698,95594.0,95584.0,0.001]
[1739858895209,0.00715698,95594.0,95589.0,0.3608]
[1739858895706,0.00015698,95594.0,95589.0,0.3608]
[1739858896111,0.00015698,95594.0,95584.0,0.10544764]
[1739858896112,0.00015698,95594.0,95590.0,0.3608]
[1739858896312,0.00215698,95594.0,95590.0,0.3608]
[1739858896515,0.00915698,95594.0,95589.0,0.002]
[1739858896905,0.00915698,95594.0,95590.0,0.3608]
[1739858897312,0.00715698,95594.0,95590.0,0.3608]
[1739858897611,0.00715698,95594.0,95590.0,0.3618]
[1739858898005,0.00715698,95594.0,95590.0,0.001]
[1739858898200,0.00715698,95594.0,95590.0,0.002]
[1739858899115,0.00915698,95594.0,95590.0,0.002]
[1739858900410,0.00915698,95594.0,95581.0,0.91236]
[1739858900607,0.3608,95582.0,95581.0,0.91236]
[1739858900821,0.3608,95582.0,95581.0,1.06176]
[1739858901009,0.3608,95582.0,95581.0,0.91236]
[1739858901305,0.2092504,95575.0,95574.0,0.14928]
[1739858901611,0.2092708,95566.0,95550.0,0.36236958]
[1739858901912,0.3608,95561.0,95550.0,0.36236958]
[1739858902207,0.3608,95578.0,95560.0,0.3608]
[1739858902208,0.00513513,95575.0,95560.0,0.3608]
[1739858902410,0.3608,95567.0,95552.0,0.2093005]
[1739858902611,0.3608,95567.0,95550.0,0.46581722]
[1739858902810,0.00015698,95565.0,95551.0,0.91224]
[1739858903016,0.00015698,95565.0,95550.0,0.46581722]
[1739858903017,0.3608,95557.0,95550.0,0.36236958]
[1739858903203,0.01182945,95565.0,95550.0,0.36236958]
[1739858903204,0.3608,95559.0,95550.0,0.36236958]
[1739858903405,0.3608,95559.0,95550.0,0.00156958]
[1739858903609,0.0445,95558.0,95550.0,0.00156958]
[1739858903813,0.0445,95558.0,95550.0,0.00256958]
[1739858904218,0.0361,95558.0,95550.0,0.00256958]
[1739858904608,0.2092964,95555.0,95550.0,0.00256958]
[1739858905412,0.0431,95558.0,95550.0,0.00356958]
[1739858905922,0.0431,95558.0,95550.0,0.00256958]
[1739858906219,0.003,95555.0,95550.0,0.00356958]
[1739858906719,0.0461,95558.0,95550.0,0.00356958]
[1739858906917,0.2092898,95557.0,95550.0,0.00356958]
[1739858907120,0.3608,95552.0,95550.0,0.00356958]
[1739858907414,0.5701017,95552.0,95550.0,0.00356958]
[1739858907610,0.0425,95551.0,95550.0,0.00356958]
[1739858907811,0.0425,95551.0,95550.0,0.00256958]
[1739858908120,0.2093052,95550.0,95546.0,0.00015698]
[1739858908341,0.2093104,95548.0,95546.0,0.00015698]
[1739858908512,0.2093487,95531.0,95515.0,0.91232]
[1739858908712,0.10244764,95530.0,95515.0,0.91232]
[1739858908915,0.3608,95523.0,95515.0,0.91232]
[1739858909416,0.209369,95521.0,95516.0,0.148]
[1739858909717,0.3608,95522.0,95515.0,0.00064]
[1739858909918,0.3608,95522.0,95516.0,0.148]
[1739858910118,0.3608,95522.0,95509.0,0.00015698]
[1739858910119,0.3608,95522.0,95515.0,0.003]
[1739858910519,0.3598,95522.0,95515.0,0.003]
[1739858911219,0.3598,95522.0,95516.0,0.14788]
[1739858911619,0.00080001,95523.0,95519.0,0.3608]
[1739858911823,0.0414,95528.0,95522.0,0.2093652]
[1739858912021,0.00015698,95529.0,95527.0,0.3608]
[1739858913722,0.00115698,95529.0,95527.0,0.3608]
[1739858914022,0.00115698,95529.0,95528.0,0.2093535]
[1739858914218,0.00315698,95529.0,95528.0,0.2093535]
[1739858915617,0.00315698,95529.0,95527.0,0.3608]
[1739858915922,0.00315698,95529.0,95528.0,0.01636489]
[1739858916622,0.00315698,95529.0,95521.0,0.91296]
[1739858916927,0.00315698,95529.0,95523.0,0.2093639]
[1739858917416,0.00315698,95529.0,95525.0,0.2093597]
[1739858918321,0.00115698,95529.0,95525.0,0.2093597]
[1739858918624,0.00115698,95529.0,95527.0,0.3608]
[1739858919017,0.00115698,95529.0,95528.0,0.2093535]
[1739858919517,0.00015698,95529.0,95528.0,0.2093535]
[1739858919720,0.0865,95547.0,95540.0,0.2093267]
[1739858919924,0.0865,95547.0,95530.0,0.31279544]
[1739858920124,0.0865,95547.0,95536.0,0.2093353]
[1739858920715,0.0865,95547.0,95540.0,0.001]
[1739858921019,0.0925,95547.0,95540.0,0.001]
[1739858921528,0.0865,95547.0,95536.0,0.2093353]
[1739858921824,0.0915,95547.0,95535.0,0.3608]
[1739858922023,0.0965,95547.0,95535.0,0.3608]
[1739858922527,0.0965,95547.0,95535.0,0.5701365]
[1739858922930,0.29333684,95549.0,95535.0,0.5701365]
[1739858923115,0.003,95547.0,95535.0,0.5701365]
[1739858923332,0.2093165,95545.0,95535.0,0.3608]
[1739858923517,0.2093238,95542.0,95535.0,0.3608]
[1739858923719,0.2093238,95542.0,95540.0,0.001]
[1739858923923,0.3608,95541.0,95532.0,0.00015698]
[1739858924127,0.5701425,95533.0,95532.0,0.00015698]
[1739858924626,0.2093623,95525.0,95505.0,0.91244]
[1739858924832,0.3608,95524.0,95510.0,0.2093925]
[1739858925125,0.3608,95524.0,95505.0,0.91304]
[1739858925432,0.209366,95523.0,95505.0,0.91304]
[1739858925618,0.209366,95523.0,95510.0,0.00015698]
[1739858926020,0.0417,95522.0,95510.0,0.00015698]
[1739858926228,0.0417,95522.0,95515.0,0.004]
[1739858926827,0.0417,95522.0,95510.0,0.00515698]
[1739858927027,0.00520437,95516.0,95510.0,0.01015698]
[1739858927522,0.3608,95514.0,95510.0,0.01015698]
[1739858927829,0.3578,95514.0,95510.0,0.00515698]
[1739858928226,0.36929849,95514.0,95510.0,0.00515698]
[1739858929123,0.3578,95514.0,95510.0,0.00515698]
[1739858929326,0.3578,95514.0,95510.0,0.00915698]
[1739858929533,0.3548,95514.0,95510.0,0.00415698]
[1739858929834,0.0432,95515.0,95511.0,0.3608]
[1739858930023,0.0432,95515.0,95512.0,0.14548]
[1739858930220,0.001,95514.0,95512.0,0.14548]
[1739858930424,0.006,95514.0,95512.0,0.14548]
[1739858930821,0.006,95514.0,95513.0,0.2093864]
[1739858932238,0.001,95514.0,95513.0,0.2093864]
[1739858932531,0.01,95515.0,95513.0,0.2093864]
[1739858932840,0.01,95515.0,95512.0,0.001]
[1739858933039,0.01,95515.0,95513.0,0.14456]
[1739858933040,0.0484,95514.0,95513.0,0.14456]
[1739858933337,0.0484,95514.0,95513.0,0.14444]
[1739858933535,0.0494,95514.0,95513.0,0.14544]
[1739858934931,0.0514,95514.0,95513.0,0.14544]
[1739858935432,0.0514,95514.0,95513.0,0.14444]
[1739858935737,0.0484,95514.0,95513.0,0.14444]
[1739858936234,0.0464,95514.0,95513.0,0.14444]
[1739858936537,0.0534,95514.0,95513.0,0.14544]
[1739858940329,0.01,95514.0,95513.0,0.14544]
[1739858941357,0.15405576,95522.0,95521.0,0.2093691]
[1739858941639,0.15405576,95522.0,95521.0,0.5701691]
[1739858942234,0.18561105,95529.0,95521.0,0.3608]
[1739858942437,0.18561105,95529.0,95528.0,0.2093538]
[1739858943545,0.18761105,95529.0,95528.0,0.2093538]
[1739858943744,0.19061105,95529.0,95528.0,0.2093538]
[1739858944630,0.00515698,95529.0,95528.0,0.2093538]
[1739858945036,0.00315698,95529.0,95528.0,0.2093538]
[1739858945237,0.00015698,95529.0,95528.0,0.2093538]
[1739858948944,0.00015698,95529.0,95525.0,0.3608]
[1739858949246,0.00115698,95529.0,95525.0,0.3608]
[1739858949440,0.0435,95528.0,95525.0,0.3608]
[1739858949642,0.0426,95527.0,95525.0,0.3608]
[1739858949843,0.0426,95527.0,95526.0,0.14128]
[1739858950645,0.0426,95527.0,95525.0,0.3608]
[1739858950844,0.0426,95527.0,95526.0,0.14088]
[1739858951850,0.04892344,95527.0,95526.0,0.14088]
[1739858952046,0.04892344,95527.0,95525.0,0.3608]
[1739858952353,0.04792344,95527.0,95525.0,0.3608]
[1739858952652,0.04992344,95527.0,95524.0,0.3608]
[1739858953046,0.00732344,95527.0,95524.0,0.3608]
[1739858953252,0.00732344,95527.0,95525.0,0.2093587]
[1739858953443,0.001,95527.0,95525.0,0.2093587]
[1739858953751,0.002,95527.0,95525.0,0.2093587]
[1739858954249,0.001,95527.0,95525.0,0.2093587]
[1739858955355,0.00015698,95529.0,95528.0,0.2093538]